fUST/lending_fUST_20241213
["ID","MTS","AMOUNT","RATE_DAILY","PERIOD"]
[345215861,1734091856649,-500.0,0.00029041,7]
[345215862,1734091856658,-500.0,0.00029041,7]
[345215863,1734091856669,-661.92,0.00029041,7]
[345215864,1734091856679,-2149.23,0.00029041,7]
[345215865,1734091856688,-500.0,0.00029041,7]
[345215866,1734091856698,-500.0,0.00029041,7]
[345215867,1734091856707,-500.0,0.00029041,7]
[345215868,1734091856717,-552.33,0.00029041,7]
[345215869,1734091856727,-509.53,0.00029041,7]
[345215870,1734091856736,-500.0,0.00029041,7]
[345215871,1734091856746,-1839.89,0.00029041,7]
[345215872,1734091856755,-500.0,0.00029041,7]
[345215873,1734091856765,-500.0,0.00029041,7]
[345215874,1734091856775,-911.59,0.00029041,7]
[345215875,1734091856785,-337.58584956,0.00029041,7]
[345215876,1734091856794,-500.0,0.00029041,7]
[345215877,1734091856803,-500.0,0.00029041,7]
[345215878,1734091856813,-1151.71,0.00029041,7]
[345215879,1734091856822,-3706.22,0.00029041,7]
[345215880,1734091856832,-550.01,0.00029041,7]
[345215881,1734091856843,-1556.05,0.00029041,7]
[345215882,1734091856852,-3961.78,0.00029041,7]
[345215883,1734091856862,-1079.48,0.00029041,7]
[345215884,1734091856871,-500.0,0.00029041,7]
[345215885,1734091856881,-1008.89,0.00029041,7]
[345215886,1734091856890,-500.0,0.00029041,7]
[345215887,1734091856900,-500.0,0.00029041,7]
[345215888,1734091856910,-1365.17,0.00029041,7]
[345215889,1734091856919,-500.0,0.00029041,7]
[345215890,1734091856929,-500.0,0.00029041,7]
[345215891,1734091856938,-500.0,0.00029041,7]
[345215892,1734091856948,-310.65641696,0.00029041,7]
[345215893,1734091856960,-500.0,0.00029041,7]
[345215894,1734091856970,-500.0,0.00029041,7]
[345215895,1734091856979,-531.52,0.00029041,7]
[345215896,1734091856993,-573.04,0.00029041,7]
[345215897,1734091857003,-500.0,0.00029041,7]
[345215898,1734091857013,-500.0,0.00029041,7]
[345215899,1734091857023,-500.0,0.00029041,7]
[345215900,1734091857033,-711.44,0.00029041,7]
[345215901,1734091857042,-3291.05,0.00029041,7]
[345215902,1734091857052,-763.56,0.00029041,7]
[345215903,1734091857061,-7606.93,0.00029041,7]
[345215904,1734091857071,-500.0,0.00029041,7]
[345215905,1734091857082,-1342.78,0.00029041,7]
[345215906,1734091857092,-4190.92,0.00029041,7]
[345215907,1734091857102,-1028.48,0.00029041,7]
[345215908,1734091857111,-520.06,0.00029041,7]
[345215909,1734091857121,-739.89,0.00029041,7]
[345215910,1734091857131,-500.0,0.00029041,7]
[345215911,1734091857140,-1263.06,0.00029041,7]
[345215912,1734091857150,-1317.54,0.00029041,7]
[345215913,1734091857160,-2675.78,0.00029041,7]
[345215914,1734091857169,-500.0,0.00029041,7]
[345215915,1734091857179,-651.59,0.00029041,7]
[345215916,1734091857189,-507.9,0.00029041,7]
[345215917,1734091857198,-500.0,0.00029041,7]
[345215918,1734091857208,-500.0,0.00029041,7]
[345215919,1734091857218,-500.0,0.00029041,7]
[345215920,1734091857228,-1455.5,0.00029041,7]
[345215921,1734091857238,-500.0,0.00029041,7]
[345215922,1734091857247,-500.0,0.00029041,7]
[345215923,1734091857256,-1461.6,0.00029041,7]
[345215924,1734091857266,-835.44,0.00029041,7]
[345215925,1734091857275,-978.03,0.00029041,7]
[345215926,1734091857285,-555.87,0.00029041,7]
[345215927,1734091857295,-683.02,0.00029041,7]
[345215928,1734091857304,-527.50064473,0.00029041,7]
[345215929,1734091857314,-500.0,0.00029041,7]
[345215930,1734091857323,-500.0,0.00029041,7]
[345215931,1734091857333,-914.56,0.00029041,7]
[345215932,1734091857343,-1797.32,0.00029041,7]
[345215933,1734091857352,-807.43,0.00029041,7]
[345215934,1734091857362,-839.4,0.00029041,7]
[345215935,1734091857372,-500.0,0.00029041,7]
[345215936,1734091857382,-580.07028731,0.00029041,7]
[345215937,1734091857392,-500.0,0.00029041,7]
[345215938,1734091857402,-518.73,0.00029041,7]
[345215939,1734091857412,-758.44,0.00029041,7]
[345215940,1734091857421,-500.0,0.00029041,7]
[345215941,1734091857431,-552.47,0.00029041,7]
[345215942,1734091857441,-5026.06,0.00029041,7]
[345215943,1734091857451,-500.0,0.00029041,7]
[345215944,1734091857461,-785.30036447,0.00029041,120]
[345215945,1734091857470,-185.97,0.00029078,3]
[345215946,1734091857479,-221.69,0.000291,31]
[345215947,1734091857489,-221.69,0.000291,31]
[345215948,1734091857498,-221.69,0.000291,31]
[345215949,1734091857507,-221.69,0.000291,31]
[345215950,1734091857518,-221.69,0.000291,31]
[345215951,1734091857527,-221.69,0.000291,31]
[345215952,1734091857536,-221.69,0.000291,31]
[345215953,1734091857546,-221.69,0.000291,31]
[345215954,1734091857555,-221.69,0.000291,31]
[345215955,1734091857566,-221.69,0.000291,31]
[345215956,1734091857575,-221.69,0.000291,31]
[345215957,1734091857585,-221.69,0.000291,31]
[345215958,1734091857600,-698.39324381,0.00029156,2]
[345215959,1734091857611,-11694.72,0.000292,2]
[345215960,1734091857620,-420.0,0.0002923,2]
[345215961,1734091857630,-302.96970909,0.0002929,2]
[345215962,1734091857641,-302.96970909,0.0002929,2]
[345215963,1734091857650,-871.08,0.00029315,7]
[345215964,1734091857660,-500.0,0.00029315,7]
[345215965,1734091857670,-500.0,0.00029315,7]
[345215966,1734091857679,-1160.79,0.00029315,7]
[345215967,1734091857689,-500.0,0.00029315,7]
[345215968,1734091857698,-500.0,0.00029315,7]
[345215969,1734091857707,-901.64,0.00029315,7]
[345215970,1734091857717,-500.0,0.00029315,7]
[345215971,1734091857727,-502.03,0.00029315,7]
[345215972,1734091857737,-498.67578997,0.00029315,7]
[345215973,1734091857746,-500.0,0.00029315,7]
[345215974,1734091857755,-500.0,0.00029315,7]
[345215975,1734091857765,-568.39769027,0.00029315,7]
[345215976,1734091857775,-1260.84,0.00029315,7]
[345215977,1734091857784,-473.37778174,0.00029315,7]
[345215978,1734091857793,-500.0,0.00029315,7]
[345215979,1734091857803,-500.0,0.00029315,7]
[345215980,1734091857812,-1225.31,0.00029315,7]
[345215981,1734091857822,-500.0,0.00029315,7]
[345215982,1734091857833,-500.0,0.00029315,7]
[345215983,1734091857843,-500.0,0.00029315,7]
[345215984,1734091857853,-1341.25,0.00029315,7]
[345215985,1734091857912,-500.0,0.00029315,7]
[345215986,1734091857921,-575.59,0.00029315,7]
[345215987,1734091857931,-500.0,0.00029315,7]
[345215988,1734091857941,-546.88,0.00029315,7]
[345215989,1734091857950,-500.0,0.00029315,7]
[345215990,1734091857959,-552.93,0.00029315,7]
[345215991,1734091857969,-651.03,0.00029315,7]
[345215992,1734091857978,-168.0,0.00029315,7]
[345215993,1734091857988,-464.01867403,0.00029315,7]
[345215994,1734091858001,-1089.68,0.00029315,7]
[345215995,1734091858010,-500.0,0.00029315,7]
[345215996,1734091858019,-500.0,0.00029315,7]
[345215997,1734091858029,-733.84,0.00029315,7]
[345215998,1734091858040,-500.0,0.00029315,7]
[345215999,1734091858050,-500.0,0.00029315,7]
[345216000,1734091858060,-1107.91,0.00029315,7]
[345216001,1734091858070,-500.0,0.00029315,7]
[345216002,1734091858080,-287.6414862,0.00029315,7]
[345216003,1734091858092,-684.71,0.00029315,7]
[345216004,1734091858102,-693.88,0.00029315,7]
[345216005,1734091858111,-857.5,0.00029315,7]
[345216006,1734091858121,-500.0,0.00029315,7]
[345216007,1734091858130,-1568.0,0.00029315,7]
[345216008,1734091858139,-500.0,0.00029315,7]
[345216009,1734091858149,-500.0,0.00029315,7]
[345216010,1734091858158,-1086.94,0.00029315,7]
[345216011,1734091858167,-500.0,0.00029315,7]
[345216012,1734091858176,-500.0,0.00029315,7]
[345216013,1734091858185,-1844.52,0.00029315,7]
[345216014,1734091858194,-500.0,0.00029315,7]
[345216015,1734091858203,-729.39,0.00029315,7]
[345216016,1734091858212,-500.0,0.00029315,7]
[345216017,1734091858221,-625.06,0.00029315,7]
[345216018,1734091858230,-500.0,0.00029315,7]
[345216019,1734091858239,-926.09,0.00029315,7]
[345216020,1734091858248,-500.0,0.00029315,7]
[345216021,1734091858257,-500.0,0.00029315,7]
[345216022,1734091858267,-376.10983031,0.00029315,7]
[345216023,1734091858276,-500.0,0.00029315,7]
[345216024,1734091858284,-3595.28,0.00029315,7]
[345216025,1734091858294,-821.18,0.00029315,7]
[345216026,1734091858303,-535.82,0.00029315,7]
[345216027,1734091858312,-539.01,0.00029315,7]
[345216028,1734091858322,-819.26,0.00029315,7]
[345216029,1734091858330,-500.0,0.00029315,7]
[345216030,1734091858340,-500.0,0.00029315,7]
[345216031,1734091858350,-500.0,0.00029315,7]
[345216032,1734091858358,-500.0,0.00029315,7]
[345216033,1734091858368,-677.7,0.00029315,7]
[345216034,1734091858377,-568.12,0.00029315,7]
[345216035,1734091858386,-574.69,0.00029315,7]
[345216036,1734091858395,-453.72207394,0.00029315,7]
[345216037,1734091858404,-500.0,0.00029315,7]
[345216038,1734091858414,-947.84,0.00029315,7]
[345216039,1734091858423,-500.0,0.00029315,7]
[345216040,1734091858432,-500.0,0.00029315,7]
[345216041,1734091858441,-608.85,0.00029315,7]
[345216042,1734091858451,-500.0,0.00029315,7]
[345216043,1734091858461,-2488.32,0.00029315,7]
[345216044,1734091858470,-500.0,0.00029315,7]
[345216045,1734091858479,-500.0,0.00029315,7]
[345216046,1734091858488,-467.47819932,0.00029315,7]
[345216047,1734091858498,-876.08,0.00029315,7]
[345216048,1734091858508,-540.65,0.00029315,7]
[345216049,1734091858518,-506.88,0.00029315,7]
[345216050,1734091858528,-758.33,0.00029315,7]
[345216051,1734091858537,-500.0,0.00029315,7]
[345216052,1734091858547,-500.0,0.00029315,7]
[345216053,1734091858557,-500.0,0.00029315,7]
[345216054,1734091858567,-500.0,0.00029315,7]
[345216055,1734091858576,-661.92,0.00029315,7]
[345216056,1734091858586,-2149.23,0.00029315,7]
[345216057,1734091858596,-500.0,0.00029315,7]
[345216058,1734091858606,-500.0,0.00029315,7]
[345216059,1734091858615,-500.0,0.00029315,7]
[345216060,1734091858625,-552.33,0.00029315,7]
[345216061,1734091858634,-509.53,0.00029315,7]
[345216062,1734091858643,-500.0,0.00029315,7]
[345216063,1734091858653,-1839.89,0.00029315,7]
[345216064,1734091858662,-500.0,0.00029315,7]
[345216065,1734091858671,-500.0,0.00029315,7]
[345216066,1734091858681,-911.59,0.00029315,7]
[345216067,1734091858691,-500.0,0.00029315,7]
[345216068,1734091858700,-500.0,0.00029315,7]
[345216069,1734091858709,-1151.71,0.00029315,7]
[345216070,1734091858719,-3706.22,0.00029315,7]
[345216071,1734091858728,-550.01,0.00029315,7]
[345216072,1734091858738,-1556.05,0.00029315,7]
[345216073,1734091858747,-3961.78,0.00029315,7]
[345216074,1734091858757,-1079.48,0.00029315,7]
[345216075,1734091858767,-500.0,0.00029315,7]
[345216076,1734091858776,-1008.89,0.00029315,7]
[345216077,1734091858786,-467.66550741,0.00029315,7]
[345216078,1734091858795,-500.0,0.00029315,7]
[345216079,1734091858805,-1365.17,0.00029315,7]
[345216080,1734091858814,-618.51832244,0.00029315,7]
[345216081,1734091858823,-500.0,0.00029315,7]
[345216082,1734091858833,-500.0,0.00029315,7]
[345216083,1734091858844,-500.0,0.00029315,7]
[345216084,1734091858854,-500.0,0.00029315,7]
[345216085,1734091858863,-531.52,0.00029315,7]
[345216086,1734091858872,-573.04,0.00029315,7]
[345216087,1734091858882,-500.0,0.00029315,7]
[345216088,1734091858892,-500.0,0.00029315,7]
[345216089,1734091858901,-500.0,0.00029315,7]
[345216090,1734091858911,-711.44,0.00029315,7]
[345216091,1734091858920,-3291.05,0.00029315,7]
[345216092,1734091858930,-763.56,0.00029315,7]
[345216093,1734091858939,-7606.93,0.00029315,7]
[345216094,1734091858949,-500.0,0.00029315,7]
[345216095,1734091858959,-1342.78,0.00029315,7]
[345216096,1734091858968,-4190.92,0.00029315,7]
[345216097,1734091858978,-1028.48,0.00029315,7]
[345216098,1734091858990,-520.06,0.00029315,7]
[345216099,1734091859000,-739.89,0.00029315,7]
[345216100,1734091859010,-196.31494543,0.00029315,7]
[345216101,1734091859019,-1263.06,0.00029315,7]
[345216102,1734091859029,-1317.54,0.00029315,7]
[345216103,1734091859038,-2675.78,0.00029315,7]
[345216104,1734091859047,-500.0,0.00029315,7]
[345216105,1734091859057,-651.59,0.00029315,7]
[345216106,1734091859068,-507.9,0.00029315,7]
[345216107,1734091859079,-500.0,0.00029315,7]
[345216108,1734091859089,-500.0,0.00029315,7]
[345216109,1734091859100,-500.0,0.00029315,7]
[345216110,1734091859111,-1455.5,0.00029315,7]
[345216111,1734091859121,-500.0,0.00029315,7]
[345216112,1734091859129,-500.0,0.00029315,7]
[345216113,1734091859139,-1461.6,0.00029315,7]
[345216114,1734091859150,-835.44,0.00029315,7]
[345216115,1734091859160,-978.03,0.00029315,7]
[345216116,1734091859169,-555.87,0.00029315,7]
[345216117,1734091859178,-683.02,0.00029315,7]
[345216118,1734091859187,-500.0,0.00029315,7]
[345216119,1734091859197,-500.0,0.00029315,7]
[345216120,1734091859207,-914.56,0.00029315,7]
[345216121,1734091859216,-1797.32,0.00029315,7]
[345216122,1734091859225,-807.43,0.00029315,7]
[345216123,1734091859235,-839.4,0.00029315,7]
[345216124,1734091859244,-500.0,0.00029315,7]
[345216125,1734091859254,-500.0,0.00029315,7]
[345216126,1734091859264,-518.73,0.00029315,7]
[345216127,1734091859274,-758.44,0.00029315,7]
[345216128,1734091859284,-500.0,0.00029315,7]
[345216129,1734091859294,-552.47,0.00029315,7]
[345216130,1734091859305,-5026.06,0.00029315,7]
[345216131,1734091859315,-500.0,0.00029315,7]
[345216132,1734091859325,-158.0,0.00029339,3]
[345216133,1734091859336,-158.0,0.00029339,3]
[345216134,1734091859347,-158.0,0.00029339,3]
[345216135,1734091859357,-158.0,0.00029339,3]
[345216136,1734091859366,-158.0,0.00029339,3]
[345216137,1734091859376,-158.0,0.00029339,3]
[345216138,1734091859386,-158.0,0.00029339,3]
[345216139,1734091859396,-158.0,0.00029339,3]
[345216140,1734091859407,-158.0,0.00029339,3]
[345216141,1734091859416,-158.0,0.00029339,3]
[345216142,1734091859426,-158.0,0.00029339,3]
[345216143,1734091859436,-158.0,0.00029339,3]
[345216144,1734091859446,-158.0,0.00029339,3]
[345216145,1734091859456,-158.0,0.00029339,3]
[345216146,1734091859466,-158.0,0.00029339,3]
[345216147,1734091859475,-158.0,0.00029339,3]
[345216148,1734091859485,-158.0,0.00029339,3]
[345216149,1734091859494,-158.0,0.00029339,3]
[345216150,1734091859504,-259.03,0.00029339,3]
[345216151,1734091859513,-151.0,0.00029345,7]
[345216152,1734091859523,-164.54,0.000294,30]
[345216153,1734091859533,-2000.0,0.000294,2]
[345216154,1734091859543,-698.39324381,0.00029418,2]
[345216155,1734091859553,-28815.50494942,0.000295,2]
[345216156,1734091859563,-221.69,0.000295,31]
[345216157,1734091859574,-221.69,0.000295,31]
[345216158,1734091859584,-221.69,0.000295,31]
[345216159,1734091859595,-221.69,0.000295,31]
[345216160,1734091859605,-221.69,0.000295,31]
[345216161,1734091859615,-221.69,0.000295,31]
[345216162,1734091859626,-221.69,0.000295,31]
[345216163,1734091859636,-221.69,0.000295,31]
[345216164,1734091859646,-221.69,0.000295,31]
[345216165,1734091859656,-221.69,0.000295,31]
[345216166,1734091859666,-221.69,0.000295,31]
[345216167,1734091859676,-221.69,0.000295,31]
[345216168,1734091859686,-221.69,0.000295,31]
[345216169,1734091859696,-221.69,0.000295,31]
[345216170,1734091859707,-221.69,0.000295,31]
[345216171,1734091859716,-221.69,0.000295,31]
[345216172,1734091859726,-221.69,0.000295,31]
[345216173,1734091859736,-221.69,0.000295,31]
[345216174,1734091859746,-221.69,0.000295,31]
[345216175,1734091859756,-221.69,0.000295,31]
[345216176,1734091859766,-221.69,0.000295,31]
[345216177,1734091859776,-221.69,0.000295,31]
[345216178,1734091859786,-221.69,0.000295,31]
[345216179,1734091859796,-221.69,0.000295,31]
[345216180,1734091859806,-1500.0,0.00029522,5]
[345216181,1734091859816,-151.0,0.00029563,7]
[345216182,1734091859826,-302.96970909,0.0002958,2]
[345216183,1734091859836,-302.96970909,0.0002958,2]
[345216184,1734091859847,-871.08,0.00029589,7]
[345216185,1734091859857,-500.0,0.00029589,7]
[345216186,1734091859867,-500.0,0.00029589,7]
[345216187,1734091859876,-1160.79,0.00029589,7]
[345216188,1734091859886,-500.0,0.00029589,7]
[345216189,1734091859896,-500.0,0.00029589,7]
[345216190,1734091859906,-901.64,0.00029589,7]
[345216191,1734091859916,-500.0,0.00029589,7]
[345216192,1734091859926,-502.03,0.00029589,7]
[345216193,1734091859936,-500.0,0.00029589,7]
[345216194,1734091859946,-500.0,0.00029589,7]
[345216195,1734091859957,-1260.84,0.00029589,7]
[345216196,1734091859967,-500.0,0.00029589,7]
[345216197,1734091859977,-500.0,0.00029589,7]
[345216198,1734091859989,-1225.31,0.00029589,7]
[345216199,1734091860010,-517.55763162,0.00029589,7]
[345216200,1734091860022,-500.0,0.00029589,7]
[345216201,1734091860032,-500.0,0.00029589,7]
[345216202,1734091860043,-1341.25,0.00029589,7]
[345216203,1734091860054,-500.0,0.00029589,7]
[345216204,1734091860065,-575.59,0.00029589,7]
[345216205,1734091860076,-532.01868683,0.00029589,7]
[345216206,1734091860086,-546.88,0.00029589,7]
[345216207,1734091860097,-500.0,0.00029589,7]
[345216208,1734091860107,-552.93,0.00029589,7]
[345216209,1734091860117,-651.03,0.00029589,7]
[345216210,1734091860127,-168.0,0.00029589,7]
[345216211,1734091860137,-1089.68,0.00029589,7]
[345216212,1734091860147,-500.0,0.00029589,7]
[345216213,1734091860157,-500.0,0.00029589,7]
[345216214,1734091860168,-733.84,0.00029589,7]
[345216215,1734091860178,-500.0,0.00029589,7]
[345216216,1734091860188,-500.0,0.00029589,7]
[345216217,1734091860199,-1107.91,0.00029589,7]
[345216218,1734091860208,-500.0,0.00029589,7]
[345216219,1734091860219,-684.71,0.00029589,7]
[345216220,1734091860230,-693.88,0.00029589,7]
[345216221,1734091860240,-857.5,0.00029589,7]
[345216222,1734091860250,-500.0,0.00029589,7]
[345216223,1734091860260,-1568.0,0.00029589,7]
[345216224,1734091860270,-206.51084843,0.00029589,7]
[345216225,1734091860280,-183.91715005,0.00029589,7]
[345216226,1734091860290,-1086.94,0.00029589,7]
[345216227,1734091860300,-500.0,0.00029589,7]
[345216228,1734091860310,-500.0,0.00029589,7]
[345216229,1734091860321,-1844.52,0.00029589,7]
[345216230,1734091860330,-500.0,0.00029589,7]
[345216231,1734091860341,-729.39,0.00029589,7]
[345216232,1734091860351,-500.0,0.00029589,7]
[345216233,1734091860362,-625.06,0.00029589,7]
[345216234,1734091860373,-500.0,0.00029589,7]
[345216235,1734091860383,-926.09,0.00029589,7]
[345216236,1734091860392,-500.0,0.00029589,7]
[345216237,1734091860402,-500.0,0.00029589,7]
[345216238,1734091860412,-500.0,0.00029589,7]
[345216239,1734091860422,-3595.28,0.00029589,7]
[345216240,1734091860432,-821.18,0.00029589,7]
[345216241,1734091860442,-535.82,0.00029589,7]
[345216242,1734091860452,-539.01,0.00029589,7]
[345216243,1734091860461,-819.26,0.00029589,7]
[345216244,1734091860471,-500.0,0.00029589,7]
[345216245,1734091860481,-500.0,0.00029589,7]
[345216246,1734091860490,-500.0,0.00029589,7]
[345216247,1734091860500,-500.0,0.00029589,7]
[345216248,1734091860509,-677.7,0.00029589,7]
[345216249,1734091860518,-568.12,0.00029589,7]
[345216250,1734091860528,-574.69,0.00029589,7]
[345216251,1734091860539,-500.0,0.00029589,7]
[345216252,1734091860549,-947.84,0.00029589,7]
[345216253,1734091860559,-500.0,0.00029589,7]
[345216254,1734091860569,-500.0,0.00029589,7]
[345216255,1734091860580,-608.85,0.00029589,7]
[345216256,1734091860591,-500.0,0.00029589,7]
[345216257,1734091860604,-2488.32,0.00029589,7]
[345216258,1734091860614,-500.0,0.00029589,7]
[345216259,1734091860624,-500.0,0.00029589,7]
[345216260,1734091860634,-876.08,0.00029589,7]
[345216261,1734091860644,-540.65,0.00029589,7]
[345216262,1734091860655,-506.88,0.00029589,7]
[345216263,1734091860665,-758.33,0.00029589,7]
[345216264,1734091860675,-500.0,0.00029589,7]
[345216265,1734091860686,-500.0,0.00029589,7]
[345216266,1734091860698,-500.0,0.00029589,7]
[345216267,1734091860707,-500.0,0.00029589,7]
[345216268,1734091860717,-661.92,0.00029589,7]
[345216269,1734091860728,-2149.23,0.00029589,7]
[345216270,1734091860738,-500.0,0.00029589,7]
[345216271,1734091860748,-500.0,0.00029589,7]
[345216272,1734091860758,-500.0,0.00029589,7]
[345216273,1734091860768,-552.33,0.00029589,7]
[345216274,1734091860777,-509.53,0.00029589,7]
[345216275,1734091860788,-500.0,0.00029589,7]
[345216276,1734091860798,-1839.89,0.00029589,7]
[345216277,1734091860808,-500.0,0.00029589,7]
[345216278,1734091860818,-500.0,0.00029589,7]
[345216279,1734091860828,-911.59,0.00029589,7]
[345216280,1734091860838,-500.0,0.00029589,7]
[345216281,1734091860849,-500.0,0.00029589,7]
[345216282,1734091860859,-1151.71,0.00029589,7]
[345216283,1734091860869,-3706.22,0.00029589,7]
[345216284,1734091860879,-550.01,0.00029589,7]
[345216285,1734091860889,-1556.05,0.00029589,7]
[345216286,1734091860899,-3961.78,0.00029589,7]
[345216287,1734091860909,-1079.48,0.00029589,7]
[345216288,1734091860919,-500.0,0.00029589,7]
[345216289,1734091860929,-1008.89,0.00029589,7]
[345216290,1734091860939,-500.0,0.00029589,7]
[345216291,1734091860949,-1365.17,0.00029589,7]
[345216292,1734091860960,-551.25669598,0.00029589,7]
[345216293,1734091860971,-500.0,0.00029589,7]
[345216294,1734091860981,-500.0,0.00029589,7]
[345216295,1734091860993,-500.0,0.00029589,7]
[345216296,1734091861004,-531.52,0.00029589,7]
[345216297,1734091861015,-573.04,0.00029589,7]
[345216298,1734091861025,-500.0,0.00029589,7]
[345216299,1734091861035,-500.0,0.00029589,7]
[345216300,1734091861047,-500.0,0.00029589,7]
[345216301,1734091861057,-711.44,0.00029589,7]
[345216302,1734091861068,-3291.05,0.00029589,7]
[345216303,1734091861079,-763.56,0.00029589,7]
[345216304,1734091861088,-7606.93,0.00029589,7]
[345216305,1734091861100,-500.0,0.00029589,7]
[345216306,1734091861110,-1342.78,0.00029589,7]
[345216307,1734091861121,-4190.92,0.00029589,7]
[345216308,1734091861131,-1028.48,0.00029589,7]
[345216309,1734091861141,-520.06,0.00029589,7]
[345216310,1734091861151,-739.89,0.00029589,7]
[345216311,1734091861162,-1263.06,0.00029589,7]
[345216312,1734091861173,-1317.54,0.00029589,7]
[345216313,1734091861183,-2675.78,0.00029589,7]
[345216314,1734091861194,-500.0,0.00029589,7]
[345216315,1734091861204,-651.59,0.00029589,7]
[345216316,1734091861214,-507.9,0.00029589,7]
[345216317,1734091861223,-500.0,0.00029589,7]
[345216318,1734091861234,-279.17889156,0.00029589,7]
[345216319,1734091861259,-500.0,0.00029589,7]
[345216320,1734091861271,-1455.5,0.00029589,7]
[345216321,1734091861282,-644.62143726,0.00029589,7]
[345216322,1734091861294,-500.0,0.00029589,7]
[345216323,1734091861306,-1461.6,0.00029589,7]
[345216324,1734091861317,-835.44,0.00029589,7]
[345216325,1734091861328,-978.03,0.00029589,7]
[345216326,1734091861339,-555.87,0.00029589,7]
[345216327,1734091861350,-683.02,0.00029589,7]
[345216328,1734091861361,-500.0,0.00029589,7]
[345216329,1734091861372,-500.0,0.00029589,7]
[345216330,1734091861383,-914.56,0.00029589,7]
[345216331,1734091861395,-1797.32,0.00029589,7]
[345216332,1734091861406,-807.43,0.00029589,7]
[345216333,1734091861417,-839.4,0.00029589,7]
[345216334,1734091861428,-500.0,0.00029589,7]
[345216335,1734091861439,-500.0,0.00029589,7]
[345216336,1734091861451,-518.73,0.00029589,7]
[345216337,1734091861462,-758.44,0.00029589,7]
[345216338,1734091861473,-500.0,0.00029589,7]
[345216339,1734091861484,-552.47,0.00029589,7]
[345216340,1734091861495,-5026.06,0.00029589,7]
[345216341,1734091861506,-3379.68,0.000296,30]
[345216342,1734091861518,-5000.0,0.00029639,7]
[345216343,1734091861528,-25689.0,0.00029666,120]
[345216344,1734091861539,-698.39324381,0.0002968,2]
[345216345,1734091861551,-160.0,0.0002975,4]
[345216346,1734091861563,-160.0,0.0002975,5]
[345216347,1734091861575,-151.0,0.00029782,7]
[345216348,1734091861586,-49528.125,0.000298,120]
[345216349,1734091861786,-13916.63810403,0.000298,7]
[345216350,1734091861799,-221.69,0.000298,31]
[345216351,1734091861809,-221.69,0.000298,31]
[345216352,1734091861819,-221.69,0.000298,31]
[345216353,1734091861829,-221.69,0.000298,31]
[345216354,1734091861838,-221.69,0.000298,31]
[345216355,1734091861851,-221.69,0.000298,31]
[345216356,1734091861860,-221.69,0.000298,31]
[345216357,1734091861870,-221.69,0.000298,31]
[345216358,1734091861880,-221.69,0.000298,31]
[345216359,1734091861890,-221.69,0.000298,31]
[345216360,1734091861901,-221.69,0.000298,31]